lending/lending_fUSD_20240110
["ID","MTS","AMOUNT","RATE_DAILY","PERIOD"]
[311022445,1704873038951,-4479.63512611,0.00027395,2]
[311022447,1704873038959,-250.0,0.00027397,2]
[311022449,1704873038969,-202.42,0.00027397,2]
[311022451,1704873038978,-250.0,0.000274,2]
[311022453,1704873038987,-161.68,0.00027412,2]
[311022455,1704873038996,-804.62,0.0002745,2]
[311022457,1704873039005,-4091.0,0.000275,2]
[311022459,1704873039014,-154.32053494,0.000275,2]
[311022461,1704873039024,-202.42,0.00027556,2]
[311022463,1704873039033,-804.62,0.00027589,2]
[311022465,1704873039043,-412.32096795,0.00027599,2]
[311022467,1704873039052,-161.68,0.00027675,2]
[311022469,1704873039062,-202.42,0.00027714,2]
[311022471,1704873039071,-804.62,0.00027727,2]
[311022473,1704873039081,-737.1,0.00027777,2]
[311022475,1704873039090,-176.5,0.00027848,2]
[311022477,1704873039099,-804.62,0.00027866,2]
[311022479,1704873039108,-202.42,0.00027872,2]
[311022481,1704873039117,-26870.99874737,0.00027883,2]
[311022483,1704873039127,-154.32053494,0.00027923,2]
[311022485,1704873039136,-332.57195947,0.00027929,2]
[311022487,1704873039145,-899.95648519,0.0002793,3]
[311022489,1704873039155,-161.68,0.00027939,2]
[311022491,1704873039164,-761.12689577,0.00027987,2]
[311022493,1704873039173,-236.5577942,0.00027999,2]
[311022495,1704873039182,-9980.53518716,0.00028,2]
[311022497,1704873039191,-202.68612241,0.00028,2]
[311022499,1704873039200,-687.51052193,0.00028,2]
[311022501,1704873039209,-804.62,0.00028004,2]
[311022503,1704873039218,-202.42,0.0002803,2]
[311022505,1704873039228,-804.62,0.00028143,2]
[311022507,1704873039237,-202.42,0.00028189,2]
[311022509,1704873039247,-161.68,0.00028202,2]
[311022511,1704873039256,-804.62,0.00028282,2]
[311022513,1704873039265,-154.32053494,0.00028345,2]
[311022515,1704873039274,-202.42,0.00028347,2]
[311022517,1704873039283,-804.62,0.0002842,2]
[311022519,1704873039293,-207.0,0.00028428,9]
[311022521,1704873039303,-161.68,0.00028466,2]
[311022523,1704873039311,-202.42,0.00028505,2]
[311022525,1704873039320,-779.61912713,0.00028505,6]
[311022527,1704873039329,-500.0,0.00028521,2]
[311022529,1704873039338,-804.62,0.00028559,2]
[311022531,1704873039347,-221.42704534,0.00028624,2]
[311022533,1704873039357,-452.2826415,0.00028624,2]
[311022535,1704873039367,-939.46,0.0002863,2]
[311022537,1704873039377,-202.42,0.00028664,2]
[311022539,1704873039387,-500.0,0.00028667,2]
[311022541,1704873039396,-804.62,0.00028698,2]
[311022543,1704873039406,-161.68,0.00028729,2]
[311022545,1704873039415,-737.1,0.00028756,2]
[311022547,1704873039424,-154.32053494,0.00028768,2]
[311022549,1704873039433,-297.842,0.00028783,2]
[311022551,1704873039442,-5655.481,0.00028783,2]
[311022553,1704873039451,-9880.971,0.00028783,2]
[311022555,1704873039461,-13481.357,0.00028783,2]
[311022557,1704873039471,-2835.638,0.00028783,2]
[311022559,1704873039480,-2997.304,0.00028783,2]
[311022561,1704873039489,-2269.0,0.00028783,2]
[311022563,1704873039498,-2929.777,0.00028783,2]
[311022565,1704873039507,-1037.302,0.00028783,2]
[311022567,1704873039516,-500.0,0.00028813,2]
[311022569,1704873039525,-202.42,0.00028822,2]
[311022571,1704873039534,-804.62,0.00028836,2]
[311022573,1704873039543,-354.0,0.00028845,5]
[311022575,1704873039553,-301.9229101,0.00028929,2]
[311022577,1704873039562,-500.0,0.00028959,2]
[311022579,1704873039571,-804.62,0.00028975,2]
[311022581,1704873039581,-161.68,0.00028993,2]
[311022583,1704873039590,-450.0,0.00029,3]
[311022585,1704873039600,-419.25,0.00029041,2]
[311022587,1704873039609,-489.63,0.00029044,2]
[311022589,1704873039618,-500.0,0.00029105,2]
[311022591,1704873039628,-899.95648519,0.0002918,4]
[311022593,1704873039637,-154.32053494,0.00029191,2]
[311022595,1704873039647,-230.08829952,0.000292,2]
[311022597,1704873039656,-176.01,0.000292,2]
[311022599,1704873039665,-158.9509322,0.000292,2]
[311022601,1704873039675,-500.0,0.000292,2]
[311022603,1704873039684,-300.0,0.000292,2]
[311022605,1704873039694,-500.0,0.00029251,2]
[311022607,1704873039703,-161.68,0.00029257,2]
[311022609,1704873039712,-176.5,0.00029355,2]
[311022611,1704873039721,-500.0,0.00029397,2]
[311022613,1704873039730,-218.47401653,0.00029482,2]
[311022615,1704873039739,-201.26700953,0.00029483,2]
[311022617,1704873039748,-270.32140913,0.00029483,2]
[311022619,1704873039756,-73964.59029198,0.00029498,2]
[311022621,1704873039766,-151.4011,0.00029498,2]
[311022624,1704873039775,-19095.86780733,0.000295,2]
[311022627,1704873039784,-161.68,0.0002952,2]
[311022630,1704873039793,-500.0,0.00029543,2]
[311022633,1704873039802,-154.32053494,0.00029613,2]
[311022636,1704873039812,-500.0,0.00029689,2]
[311022638,1704873039821,-151.4011,0.00029698,2]
[311022643,1704873039831,-737.1,0.00029734,2]
[311022647,1704873039840,-176.01,0.00029748,2]
[311022652,1704873039849,-812.08455662,0.00029748,2]
[311022658,1704873039858,-161.68,0.00029784,2]
[311022665,1704873039868,-500.0,0.00029836,2]
[311022671,1704873039878,-151.4011,0.00029898,2]
[311022677,1704873039887,-159.93165925,0.000299,2]
[311022683,1704873039897,-159.93165919,0.000299,2]
[311022689,1704873039906,-159.93165919,0.000299,2]
[311022693,1704873039915,-159.93165919,0.000299,2]
[311022696,1704873039924,-159.93165919,0.000299,2]
[311022699,1704873039933,-159.93165919,0.000299,2]
[311022702,1704873039942,-159.93165919,0.000299,2]
[311022704,1704873039951,-387.36924573,0.00029917,2]
[311022706,1704873039961,-500.0,0.00029982,2]
[311022708,1704873039970,-25290.9799813,0.00029998,2]
[311022710,1704873039980,-155.0,0.0003,2]
[311022712,1704873039990,-2548.35015776,0.0003,4]
[311022714,1704873039999,-200.0,0.0003,2]
[311022716,1704873040009,-682.41577316,0.0003,4]
[311022719,1704873040018,-681.0333,0.0003,2]
[311022721,1704873040027,-681.03331,0.0003,2]
[311022722,1704873040036,-681.03331,0.0003,2]
[311022725,1704873040046,-681.03331,0.0003,2]
[311022726,1704873040056,-681.03331,0.0003,2]
[311022728,1704873040065,-681.03331,0.0003,2]
[311022730,1704873040074,-4000.0,0.0003,2]
[311022732,1704873040085,-387.36924573,0.00030015,2]
[311022735,1704873040095,-624.69,0.00030017,2]
[311022737,1704873040104,-4150.06605458,0.00030034,2]
[311022739,1704873040113,-250.0,0.00030036,2]
[311022741,1704873040122,-5000.0,0.00030036,2]
[311022742,1704873040131,-55555.0,0.00030036,3]
[311022744,1704873040141,-154.32053494,0.00030036,2]
[311022746,1704873040150,-863.07402171,0.00030036,2]
[311022749,1704873040160,-1319.0602402,0.00030036,2]
[311022751,1704873040169,-323.39839969,0.00030036,2]
[311022752,1704873040178,-577.5517674,0.00030036,2]
[311022754,1704873040187,-200.55854945,0.00030036,2]
[311022756,1704873040196,-161.68,0.00030047,2]
[311022758,1704873040206,-312.34,0.00030098,2]
[311022761,1704873040215,-387.36924573,0.00030114,2]
[311022763,1704873040224,-332.57195947,0.00030126,2]
[311022764,1704873040233,-500.0,0.00030128,2]
[311022767,1704873040243,-196.32812236,0.00030132,4]
[311022769,1704873040252,-2398.89574904,0.00030132,4]
[311022771,1704873040261,-199.28238027,0.00030132,4]
[311022773,1704873040270,-527.15230498,0.00030132,2]
[311022775,1704873040279,-6777.51364493,0.00030132,3]
[311022777,1704873040287,-548.39666702,0.00030132,4]
[311022779,1704873040296,-246.1670273,0.00030132,4]
[311022781,1704873040306,-1148.79810575,0.00030132,2]
[311022783,1704873040315,-1651.38716864,0.00030132,4]
[311022785,1704873040324,-306.7001144,0.00030132,4]
[311022787,1704873040335,-764.40714469,0.00030132,2]
[311022788,1704873040345,-4028.0571919,0.00030132,2]
[311022791,1704873040354,-4011.93828509,0.00030132,2]
[311022793,1704873040363,-765.16043303,0.00030133,2]
[311022795,1704873040372,-155.0,0.00030134,4]
[311022797,1704873040382,-239.0333001,0.00030134,4]
[311022799,1704873040391,-2266.50427653,0.00030134,4]
[311022801,1704873040400,-344.74737928,0.00030134,4]
[311022803,1704873040409,-248.3603035,0.00030134,4]
[311022805,1704873040418,-605.28484984,0.00030134,4]
[311022807,1704873040427,-1042.38109743,0.00030134,4]
[311022808,1704873040436,-399.70065492,0.00030134,4]
[311022809,1704873040445,-155.27953667,0.00030134,2]
[311022810,1704873040454,-155.65341722,0.00030134,4]
[311022811,1704873040463,-547.74754147,0.00030134,2]
[311022812,1704873040472,-205.24503028,0.00030134,4]
[311022813,1704873040481,-1075.4331592,0.00030134,4]
[311022814,1704873040490,-1357.41957117,0.00030134,4]
[311022815,1704873040499,-157.38860694,0.00030134,4]
[311022816,1704873040508,-3046.74010663,0.00030134,4]
[311022817,1704873040517,-2843.48124468,0.00030134,4]
[311022818,1704873040526,-522.40930819,0.00030134,4]
[311022820,1704873040536,-697.8377058,0.00030135,4]
[311022822,1704873040545,-150.0,0.00030135,2]
[311022824,1704873040553,-282.18111989,0.00030135,2]
[311022826,1704873040563,-150.0,0.00030135,2]
[311022827,1704873040571,-500.0,0.00030136,2]
[311022828,1704873040581,-281.27641028,0.00030136,2]
[311022829,1704873040590,-500.0,0.00030136,2]
[311022830,1704873040599,-500.0,0.00030136,2]
[311022831,1704873040608,-500.0,0.00030136,2]
[311022832,1704873040617,-500.0,0.00030136,2]
[311022833,1704873040627,-500.0,0.00030136,2]
[311022834,1704873040636,-588.42670694,0.00030136,2]
[311022835,1704873040645,-500.0,0.00030136,2]
[311022836,1704873040654,-500.0,0.00030136,2]
[311022837,1704873040664,-230.79648435,0.00030136,2]
[311022838,1704873040673,-500.0,0.00030136,2]
[311022839,1704873040682,-500.0,0.00030136,2]
[311022840,1704873040690,-500.0,0.00030136,2]
[311022841,1704873040701,-197.67732586,0.00030136,2]
[311022842,1704873040710,-500.0,0.00030136,2]
[311022843,1704873040719,-500.0,0.00030136,2]
[311022844,1704873040728,-500.0,0.00030136,2]
[311022846,1704873040737,-688.19,0.00030136,2]
[311022848,1704873040746,-630.0,0.00030136,2]
[311022849,1704873040755,-500.0,0.00030136,2]
[311022851,1704873040764,-530.72723552,0.00030136,2]
[311022853,1704873040773,-934.67,0.00030136,2]
[311022854,1704873040782,-500.0,0.00030136,2]
[311022855,1704873040791,-500.0,0.00030136,2]
[311022857,1704873040800,-500.0,0.00030136,2]
[311022859,1704873040809,-734.38,0.00030136,2]
[311022860,1704873040818,-500.0,0.00030136,2]
[311022862,1704873040827,-1024.46,0.00030136,2]
[311022863,1704873040838,-500.0,0.00030136,2]
[311022865,1704873040847,-500.0,0.00030136,2]
[311022867,1704873040856,-351.46803177,0.00030136,2]
[311022868,1704873040866,-500.0,0.00030136,2]
[311022870,1704873040875,-555.69,0.00030136,2]
[311022872,1704873040884,-960.17,0.00030136,2]
[311022873,1704873040893,-500.0,0.00030136,2]
[311022875,1704873040902,-500.0,0.00030136,2]
[311022877,1704873040911,-500.0,0.00030136,2]
[311022878,1704873040921,-500.0,0.00030136,2]
[311022879,1704873040930,-662.62,0.00030136,2]
[311022880,1704873040939,-945.78,0.00030136,2]
[311022881,1704873040949,-186.32325382,0.00030136,2]
[311022882,1704873040958,-957.52,0.00030136,2]
[311022883,1704873040967,-584.88,0.00030136,2]
[311022884,1704873040976,-500.0,0.00030136,2]
[311022885,1704873040985,-500.0,0.00030136,2]
[311022886,1704873040995,-700.12,0.00030136,2]
[311022887,1704873041004,-671.75,0.00030136,2]
[311022908,1704873041270,-500.0,0.00030136,2]
[311022911,1704873041280,-163.89571378,0.00030136,2]
[311022913,1704873041289,-500.0,0.00030136,2]
[311022915,1704873041298,-500.0,0.00030136,2]
[311022917,1704873041307,-500.0,0.00030136,2]
[311022919,1704873041316,-500.0,0.00030136,2]
[311022920,1704873041325,-576.06,0.00030136,2]
[311022922,1704873041336,-500.0,0.00030136,2]
[311022925,1704873041348,-549.46,0.00030136,2]
[311022926,1704873041357,-500.0,0.00030136,2]
[311022928,1704873041367,-627.6,0.00030136,2]
[311022930,1704873041376,-500.0,0.00030136,2]
[311022932,1704873041385,-500.0,0.00030136,2]
[311022934,1704873041394,-500.0,0.00030136,2]
[311022936,1704873041402,-500.0,0.00030136,2]
[311022939,1704873041414,-500.0,0.00030136,2]
[311022941,1704873041423,-500.0,0.00030136,2]
[311022943,1704873041432,-500.0,0.00030136,2]
[311022945,1704873041442,-500.0,0.00030136,2]
[311022947,1704873041452,-500.0,0.00030136,2]
[311022948,1704873041462,-503.38431627,0.00030136,2]
[311022951,1704873041471,-729.53,0.00030136,2]
[311022953,1704873041480,-695.07,0.00030136,2]
[311022955,1704873041489,-500.0,0.00030136,2]
[311022957,1704873041498,-500.0,0.00030136,2]
[311022958,1704873041507,-500.0,0.00030136,2]
[311022960,1704873041516,-758.31,0.00030136,2]
[311022962,1704873041525,-500.0,0.00030136,2]
[311022964,1704873041534,-500.0,0.00030136,2]
[311022966,1704873041543,-500.0,0.00030136,2]
[311022968,1704873041552,-500.0,0.00030136,2]
[311022970,1704873041561,-500.0,0.00030136,2]
[311022972,1704873041570,-500.0,0.00030136,2]
[311022974,1704873041580,-500.0,0.00030136,2]
[311022976,1704873041589,-560.19,0.00030136,2]
[311022978,1704873041598,-610.84,0.00030136,2]
[311022980,1704873041608,-500.0,0.00030136,2]
[311022982,1704873041617,-500.0,0.00030136,2]
[311022984,1704873041626,-500.0,0.00030136,2]
[311022986,1704873041635,-889.76,0.00030136,2]
[311022988,1704873041644,-500.0,0.00030136,2]
[311022990,1704873041653,-500.0,0.00030136,2]
[311022992,1704873041662,-500.0,0.00030136,2]
[311022994,1704873041671,-500.0,0.00030136,2]
[311022997,1704873041680,-500.0,0.00030136,2]
[311022999,1704873041689,-500.0,0.00030136,2]
[311023001,1704873041698,-500.0,0.00030136,2]
[311023003,1704873041707,-500.0,0.00030136,2]
[311023005,1704873041720,-500.0,0.00030136,2]
[311023007,1704873041729,-910.4,0.00030136,2]
[311023009,1704873041738,-500.0,0.00030136,2]
[311023011,1704873041747,-722.78,0.00030136,2]
[311023013,1704873041756,-500.0,0.00030136,2]
[311023015,1704873041765,-500.0,0.00030136,2]
[311023017,1704873041774,-486.74791048,0.00030136,2]
[311023019,1704873041783,-500.0,0.00030136,2]
[311023021,1704873041792,-500.0,0.00030136,2]
[311023023,1704873041802,-500.0,0.00030136,2]
[311023025,1704873041811,-500.0,0.00030136,2]
[311023027,1704873041819,-501.66339692,0.00030136,2]
[311023029,1704873041828,-500.0,0.00030136,2]
[311023031,1704873041838,-500.0,0.00030136,2]
[311023033,1704873041847,-500.0,0.00030136,2]
[311023035,1704873041856,-500.0,0.00030136,2]
[311023037,1704873041866,-396.44136257,0.00030136,2]
[311023039,1704873041875,-500.0,0.00030136,2]
[311023041,1704873041884,-774.75,0.00030136,2]
[311023043,1704873041893,-536.8,0.00030136,2]
[311023045,1704873041902,-555.46,0.00030136,2]
[311023047,1704873041910,-500.0,0.00030136,2]
[311023049,1704873041919,-554.75,0.00030136,2]
[311023051,1704873041928,-500.0,0.00030136,2]
[311023053,1704873041937,-650.19,0.00030136,2]
[311023055,1704873041945,-500.0,0.00030136,2]
[311023057,1704873041953,-1135.23,0.00030136,2]
[311023059,1704873041962,-527.59843818,0.00030136,2]
[311023061,1704873041971,-685.39,0.00030136,2]
[311023063,1704873041980,-500.0,0.00030136,2]
[311023065,1704873041990,-500.0,0.00030136,2]
[311023067,1704873041999,-500.0,0.00030136,2]
[311023069,1704873042007,-682.77,0.00030136,2]
[311023071,1704873042016,-500.0,0.00030136,2]
[311023073,1704873042026,-500.0,0.00030136,2]
[311023075,1704873042035,-500.0,0.00030136,2]
[311023077,1704873042044,-269.85501914,0.00030136,2]
[311023079,1704873042053,-500.0,0.00030136,2]
[311023081,1704873042062,-500.0,0.00030136,2]
[311023083,1704873042071,-500.0,0.00030136,2]
[311023085,1704873042081,-500.0,0.00030136,2]
[311023087,1704873042090,-500.0,0.00030136,2]
[311023089,1704873042099,-500.0,0.00030136,2]
[311023091,1704873042108,-500.0,0.00030136,2]
[311023093,1704873042117,-672.14,0.00030136,2]
[311023095,1704873042126,-500.0,0.00030136,2]
[311023097,1704873042135,-500.0,0.00030136,2]
[311023099,1704873042144,-500.0,0.00030136,2]
[311023101,1704873042153,-500.0,0.00030136,2]
[311023103,1704873042162,-500.0,0.00030136,2]
[311023105,1704873042171,-783.91,0.00030136,2]
[311023107,1704873042180,-500.0,0.00030136,2]
[311023109,1704873042190,-495.2965306,0.00030136,2]
[311023111,1704873042199,-748.93,0.00030136,2]
[311023113,1704873042208,-500.0,0.00030136,2]
[311023115,1704873042217,-500.47,0.00030136,2]
[311023117,1704873042226,-500.0,0.00030136,2]
[311023119,1704873042235,-389.1356397,0.00030136,2]
[311023121,1704873042244,-500.0,0.00030136,2]
[311023123,1704873042253,-500.0,0.00030136,2]
[311023125,1704873042262,-506.79320842,0.00030136,2]
[311023127,1704873042271,-609.19,0.00030136,2]
[311023129,1704873042280,-500.0,0.00030136,2]
[311023131,1704873042288,-500.0,0.00030136,2]
[311023133,1704873042297,-656.48,0.00030136,2]
[311023135,1704873042306,-500.0,0.00030136,2]
[311023137,1704873042315,-511.64936177,0.00030136,2]
[311023139,1704873042324,-500.0,0.00030136,2]
[311023141,1704873042334,-500.0,0.00030136,2]
[311023143,1704873042343,-500.0,0.00030136,2]
[311023145,1704873042352,-500.0,0.00030136,2]
[311023147,1704873042361,-500.0,0.00030136,2]
[311023149,1704873042371,-1004.91,0.00030136,2]
[311023151,1704873042380,-500.0,0.00030136,2]
[311023153,1704873042389,-506.03091694,0.00030136,2]
[311023155,1704873042398,-500.0,0.00030136,2]
[311023157,1704873042407,-1088.9,0.00030136,2]
[311023159,1704873042416,-503.81551291,0.00030136,2]
[311023161,1704873042425,-500.0,0.00030136,2]
[311023163,1704873042434,-500.0,0.00030136,2]
[311023165,1704873042444,-500.0,0.00030136,2]
[311023167,1704873042453,-500.0,0.00030136,2]
[311023169,1704873042462,-731.88,0.00030136,2]
[311023171,1704873042471,-500.0,0.00030136,2]
[311023173,1704873042480,-694.19,0.00030136,2]
[311023175,1704873042489,-500.0,0.00030136,2]
[311023177,1704873042498,-1027.13,0.00030136,2]
[311023180,1704873042507,-500.0,0.00030136,2]
[311023182,1704873042516,-500.0,0.00030136,2]
[311023184,1704873042525,-500.0,0.00030136,2]
[311023186,1704873042534,-555.6821559,0.00030136,2]
[311023188,1704873042543,-500.0,0.00030136,2]
[311023190,1704873042552,-550.3,0.00030136,2]
[311023192,1704873042561,-281.32898543,0.00030136,2]
[311023194,1704873042570,-930.41,0.00030136,2]
[311023196,1704873042579,-500.0,0.00030136,2]
[311023198,1704873042589,-500.0,0.00030136,2]
[311023201,1704873042598,-500.0,0.00030136,2]
[311023203,1704873042609,-500.0,0.00030136,2]
[311023205,1704873042617,-500.0,0.00030136,2]
[311023207,1704873042626,-500.0,0.00030136,2]
[311023209,1704873042635,-500.0,0.00030136,2]
[311023211,1704873042644,-557.13,0.00030136,2]
[311023213,1704873042653,-5000.0,0.00030136,2]
[311023215,1704873042662,-500.0,0.00030136,2]
[311023217,1704873042671,-500.0,0.00030136,2]
[311023219,1704873042680,-500.0,0.00030136,2]
[311023221,1704873042689,-645.67,0.00030136,2]
[311023223,1704873042698,-500.0,0.00030136,2]
[311023225,1704873042707,-699.15,0.00030136,2]
[311023226,1704873042716,-500.0,0.00030136,2]
[311023229,1704873042725,-875.6,0.00030136,2]
[311023231,1704873042734,-500.0,0.00030136,2]
[311023233,1704873042743,-500.0,0.00030136,2]
[311023235,1704873042753,-500.0,0.00030136,2]
[311023236,1704873042762,-938.52,0.00030136,2]
[311023239,1704873042771,-703.92,0.00030136,10]
[311023241,1704873042780,-500.0,0.00030136,2]
[311023242,1704873042789,-500.0,0.00030136,2]
[311023245,1704873042798,-500.0,0.00030136,2]
[311023247,1704873042807,-500.0,0.00030136,2]
[311023249,1704873042817,-528.62716152,0.00030136,2]
[311023251,1704873042826,-500.0,0.00030136,2]
[311023252,1704873042835,-500.0,0.00030136,2]
[311023255,1704873042845,-500.0,0.00030136,2]
[311023257,1704873042854,-500.0,0.00030136,2]
[311023259,1704873042863,-500.0,0.00030136,2]
[311023261,1704873042871,-500.0,0.00030136,2]
[311023263,1704873042881,-500.0,0.00030136,2]
[311023264,1704873042890,-500.0,0.00030136,2]
[311023267,1704873042899,-500.0,0.00030136,2]
[311023269,1704873042908,-739.13,0.00030136,2]
[311023271,1704873042917,-500.0,0.00030136,2]
[311023273,1704873042927,-500.0,0.00030136,2]
[311023274,1704873042936,-500.0,0.00030136,2]
[311023276,1704873042945,-900.21,0.00030136,2]
[311023278,1704873042954,-1252.37,0.00030136,2]
[311023281,1704873042963,-644.75,0.00030136,2]
[311023284,1704873042973,-1031.57,0.00030136,2]
[311023286,1704873042982,-500.0,0.00030136,2]
[311023289,1704873042992,-944.68,0.00030136,2]
[311023290,1704873043001,-500.0,0.00030136,2]
[311023292,1704873043010,-500.0,0.00030136,2]
[311023294,1704873043020,-566.35,0.00030136,2]
[311023296,1704873043029,-500.0,0.00030136,2]
[311023298,1704873043039,-1023.32,0.00030136,4]
[311023301,1704873043053,-500.0,0.00030136,2]
[311023303,1704873043062,-500.0,0.00030136,2]
[311023305,1704873043072,-695.65,0.00030136,2]
[311023307,1704873043081,-500.0,0.00030136,2]
[311023309,1704873043091,-500.0,0.00030136,2]
[311023311,1704873043100,-500.0,0.00030136,2]
[311023313,1704873043109,-500.0,0.00030136,2]
[311023315,1704873043117,-500.0,0.00030136,2]
[311023317,1704873043125,-532.64205605,0.00030136,2]
[311023319,1704873043135,-500.0,0.00030136,2]
[311023321,1704873043144,-794.51,0.00030136,2]
[311023323,1704873043153,-895.37,0.00030136,2]
[311023325,1704873043163,-500.0,0.00030136,2]
[311023326,1704873043172,-555.48,0.00030136,2]
[311023328,1704873043181,-500.0,0.00030136,2]
[311023330,1704873043191,-979.38,0.00030136,2]
[311023333,1704873043200,-500.0,0.00030136,2]
[311023334,1704873043209,-746.37,0.00030136,2]
[311023336,1704873043219,-500.0,0.00030136,2]
[311023339,1704873043231,-1034.89,0.00030136,2]
[311023341,1704873043240,-500.0,0.00030136,2]
[311023343,1704873043250,-489.79006157,0.00030136,2]
[311023345,1704873043259,-806.42,0.00030136,2]
[311023347,1704873043268,-687.36,0.00030136,2]
[311023349,1704873043276,-1000.0,0.00030136,2]
[311023351,1704873043285,-500.0,0.00030136,2]
[311023353,1704873043294,-500.0,0.00030136,2]
[311023355,1704873043303,-781.57,0.00030136,2]
[311023357,1704873043312,-500.0,0.00030136,2]
[311023358,1704873043321,-758.09,0.00030136,2]
[311023361,1704873043331,-506.42473649,0.00030136,2]
[311023363,1704873043341,-500.0,0.00030136,2]
[311023365,1704873043351,-566.15,0.00030136,2]
[311023367,1704873043361,-500.0,0.00030136,2]
[311023368,1704873043373,-300.0,0.00030136,2]
[311023371,1704873043383,-674.7,0.00030136,2]
[311023373,1704873043392,-653.09,0.00030136,2]
[311023375,1704873043402,-328.70451191,0.00030136,2]
[311023377,1704873043411,-641.05,0.00030136,2]
[311023379,1704873043420,-500.0,0.00030136,2]
[311023381,1704873043429,-1144.59,0.00030136,2]
[311023383,1704873043440,-500.0,0.00030136,2]
[311023385,1704873043449,-522.51275539,0.00030136,2]
[311023386,1704873043459,-618.68,0.00030136,2]
[311023387,1704873043469,-941.67,0.00030136,2]
[311023388,1704873043478,-681.29,0.00030136,2]
[311023389,1704873043488,-537.77756527,0.00030136,2]
[311023390,1704873043497,-500.0,0.00030136,2]
[311023391,1704873043506,-1000.0,0.00030136,2]
[311023392,1704873043515,-500.0,0.00030136,2]
[311023393,1704873043524,-1523.66,0.00030136,2]
[311023394,1704873043533,-500.0,0.00030136,2]
[311023395,1704873043543,-500.0,0.00030136,2]
[311023397,1704873043552,-508.01838918,0.00030136,2]
[311023399,1704873043561,-500.0,0.00030136,2]
[311023401,1704873043570,-500.0,0.00030136,2]
[311023403,1704873043579,-500.0,0.00030136,2]
[311023405,1704873043588,-500.0,0.00030136,2]
[311023407,1704873043598,-500.0,0.00030136,2]
[311023409,1704873043607,-500.0,0.00030136,2]
[311023411,1704873043615,-500.0,0.00030136,2]
[311023413,1704873043624,-500.0,0.00030136,2]
[311023415,1704873043633,-1684.92,0.00030136,2]
[311023417,1704873043642,-617.56,0.00030136,2]
[311023419,1704873043651,-1487.26,0.00030136,2]
[311023421,1704873043661,-500.0,0.00030136,2]
[311023423,1704873043670,-500.0,0.00030136,2]
[311023424,1704873043678,-664.35,0.00030136,2]
[311023426,1704873043688,-500.0,0.00030136,2]
[311023428,1704873043698,-500.0,0.00030136,2]
[311023431,1704873043709,-790.36,0.00030136,2]
[311023433,1704873043723,-500.0,0.00030136,2]
[311023435,1704873043733,-3111.8,0.00030136,2]
[311023437,1704873043742,-500.0,0.00030136,2]
[311023439,1704873043752,-500.0,0.00030136,2]
[311023441,1704873043761,-500.0,0.00030136,2]
[311023443,1704873043772,-523.02,0.00030136,2]
[311023445,1704873043781,-500.0,0.00030136,2]
[311023447,1704873043790,-500.0,0.00030136,2]
[311023449,1704873043799,-500.0,0.00030136,2]
[311023451,1704873043808,-500.0,0.00030136,2]
[311023453,1704873043817,-500.0,0.00030136,2]
[311023455,1704873043826,-500.0,0.00030136,2]